fUST/lending_fUST_20240108
["ID","MTS","AMOUNT","RATE_DAILY","PERIOD"]
[310714402,1704652246804,-204.7864208,0.0002931,2]
[310714404,1704652246813,-5102.81778621,0.0002931,2]
[310714405,1704652246822,-1530.84533587,0.0002931,2]
[310714406,1704652246831,-224.16107024,0.0002931,2]
[310714407,1704652246841,-301.61083922,0.00029403,2]
[310714408,1704652246851,-21949.75256416,0.000295,30]
[310714409,1704652246861,-318.383766,0.00029744,2]
[310714410,1704652246871,-1279.40350629,0.00029788,2]
[310714411,1704652246880,-686.12090069,0.0003,4]
[310714412,1704652246889,-172.62934914,0.0003,2]
[310714413,1704652246898,-154.86062544,0.0003,4]
[310714414,1704652246907,-639.13927279,0.0003,4]
[310714415,1704652246916,-233.82229576,0.0003,2]
[310714974,1704653441798,-174.76839857,0.00025756,2]
[310714975,1704653441811,-154.86062544,0.00025757,2]
[310714976,1704653441825,-1465.38212325,0.00025757,2]
[310714977,1704653441838,-154.86062544,0.00025758,4]
[310714978,1704653441850,-154.86062544,0.00025758,2]
[310714979,1704653441862,-154.86062544,0.00025759,2]
[310714980,1704653441875,-174.476193,0.00025798,2]
[310714981,1704653441887,-184.92688175,0.00025815,2]
[310714982,1704653441900,-8507.37131831,0.00026356,2]
[310714983,1704653441915,-11459.70272938,0.00026356,2]
[310714984,1704653441926,-4261.9538449,0.00026357,2]
[310714985,1704653441938,-166.666666,0.00026526,2]
[310714986,1704653441949,-6937.43692916,0.00026548,2]
[310714987,1704653441961,-1245.76372875,0.00026548,2]
[310714988,1704653441973,-618.56145052,0.00026617,2]
[310714989,1704653441984,-545.99331309,0.00026617,2]
[310714990,1704653441993,-368.84438132,0.00026617,2]
[310714991,1704653442107,-300.0,0.00026617,2]
[310714992,1704653442122,-200.0,0.00026915,2]
[310714993,1704653442131,-380.0,0.00026982,2]
[310714994,1704653442141,-344.31973606,0.00028,2]
[310714995,1704653442150,-9090.95951521,0.000285,4]
[310714996,1704653442159,-660.0666605,0.00028908,2]
[310714997,1704653442169,-7784.85258979,0.00029,7]
[310714998,1704653442178,-200.0,0.00029278,15]
[310714999,1704653442188,-188.71201405,0.0002931,2]
[310715000,1704653442197,-1879.04852787,0.0002931,2]
[310715001,1704653442206,-282.92595231,0.00029351,2]
[310715002,1704653442216,-301.61083922,0.00029403,2]
[310715003,1704653442226,-779.97,0.00029489,3]
[310715004,1704653442236,-86.07517606,0.00029489,3]
[310715005,1704653442248,-1401.27482394,0.00029489,3]
[310715006,1704653442258,-606.98621505,0.00029498,2]
[310715007,1704653442267,-266.72372798,0.00029498,2]
[310715008,1704653442276,-147.78912552,0.00029499,2]
[310715009,1704653442291,-256.21964196,0.00029499,2]
[310715010,1704653442300,-8475.39026558,0.00029499,2]
[310715011,1704653442312,-13632.8285274,0.00029499,2]
[310715027,1704653446583,-1250.03351849,0.00029498,2]
[310715028,1704653446592,-37162.26647114,0.00029499,2]
[310715029,1704653446616,-628.869997,0.00029499,2]
[310715087,1704653665431,-154.86062544,0.00017599,2]
[310715088,1704653665459,-148.65103826,0.000176,2]
[310715089,1704653665635,-6.19411559,0.000176,2]
[310715090,1704653666982,154.86062544,0.00017599,2]
[310715092,1704653734167,-1492.51225633,0.00017599,2]
[310715093,1704653734288,-30.4594338,0.00017599,2]
[310715095,1704653746018,-1492.51225633,0.00017599,2]
[310715096,1704653746334,-30.4594338,0.00017599,2]
[310715097,1704653772059,-155.0,0.00017599,2]
[310715123,1704654070244,200.0,0.00021276,7]
[310715127,1704654075689,-18.7980962,0.00017599,2]
[310715128,1704654075717,-3815.57873413,0.00018282,2]
[310715129,1704654075923,-78.25258837,0.00018282,2]
[310715148,1704654180359,-3392.14573162,0.00018282,2]
[310715149,1704654180633,-69.22746391,0.00018282,2]
[310715152,1704654184979,-1990.43023134,0.00018282,2]
[310715153,1704654185147,-40.62102513,0.00018282,2]
[310715154,1704654185724,642.55748837,0.00018281,2]
[310715155,1704654185811,1173.756261,0.0001826,2]
[310715212,1704654436288,-1134.97207411,0.00018318,2]
[310715213,1704654436538,-23.16269539,0.00018318,2]
[310715233,1704654507901,-198.70928168,0.00018129,2]
[310715234,1704654507930,-606.31239599,0.00018129,2]
[310715235,1704654507959,-242.44438478,0.00018129,2]
[310715236,1704654507988,-174.76839857,0.0001813,2]
[310715237,1704654508018,-3777.76553898,0.0001813,2]
[310715238,1704654508193,-5000.0,0.0001813,2]
[310715239,1704654508323,-5000.0,0.0001813,2]
[310715240,1704654508428,-5000.0,0.0001813,2]
[310715241,1704654508537,-2042.11217093,0.0001813,2]
[310715242,1704654508564,-154.84515485,0.00018131,2]
[310715243,1704654508593,-2803.04267422,0.00018131,2]
[310715244,1704654508746,-3146.32766131,0.00018131,2]
[310715245,1704654511292,1465.38212325,0.00018128,2]
[310715246,1704654517380,-154.84515485,0.00018128,2]
[310715247,1704654517418,-154.84515485,0.00018131,3]
[310715248,1704654517455,-1067.09079017,0.00018131,2]
[310715249,1704654517669,-182.94272832,0.00018131,2]
[310715254,1704654522547,-2799.5379673,0.00017398,2]
[310715255,1704654522674,-57.1334279,0.00017398,2]
[310715257,1704654523198,-287.3256569,0.00018131,2]
[310715258,1704654523360,-5.86378892,0.00018131,2]
[310715263,1704654527289,1465.38212325,0.00014499,2]
[310715264,1704654528626,-2813.99180581,0.00017397,2]
[310715265,1704654528762,-57.4284042,0.00017397,2]
[310715266,1704654534310,-316.18805062,0.00017396,2]
[310715267,1704654534497,-6.45281736,0.00017396,2]
[310715275,1704654547286,1465.38212325,0.00013597,2]
[310715276,1704654548267,-154.84515485,0.00017398,3]
[310715277,1704654548297,-160.56835726,0.00018131,2]
[310715278,1704654548449,-161.2821653,0.00018131,2]
[310715279,1704654548478,-4838.7178347,0.00018132,2]
[310715280,1704654548551,-5000.0,0.00018132,2]
[310715281,1704654548680,-4900.0,0.00018132,2]
[310715282,1704654548794,-4900.0,0.00018132,2]
[310715283,1704654549139,-5000.0,0.00018132,2]
[310715284,1704654549248,-464.0414762,0.00018132,2]
[310715289,1704654567292,1465.38212325,0.00014499,2]
[310715291,1704654572306,-154.84515485,0.00017398,3]
[310715292,1704654572336,-439.34099322,0.00018212,2]
[310715293,1704654572591,-166.97140277,0.00018212,2]
[310715299,1704654585304,1465.38212325,0.00014499,2]
[310715301,1704654590915,-154.84515485,0.00017398,3]
[310715302,1704654591053,-168.1761275,0.00018211,2]
[310715303,1704654591092,-6.59227107,0.00018211,2]
[310715304,1704654591123,-154.84515485,0.00018212,2]
[310715312,1704654607300,1465.38212325,0.00014499,2]
[310715314,1704654621686,-154.84515485,0.00017398,3]
[310715315,1704654621717,-572.0436643,0.00018132,2]
[310715316,1704654621973,-14.8344657,0.00018132,2]
[310715317,1704654622001,-154.84515485,0.00018211,2]
[310715318,1704654628259,1461.08957285,0.00014499,2]
[310715342,1704654632664,-5000.0,0.00018213,2]
[310715343,1704654632673,-169.9529526,0.00018565,2]
[310715344,1704654632682,-173.67174706,0.00019035,2]
[310715345,1704654632692,-155.08631331,0.00019132,2]
[310715346,1704654632701,-3666.38601504,0.0001915,2]
[310715347,1704654632710,-366.055021,0.00019178,2]
[310715348,1704654632720,-154.84515485,0.00019331,2]
[310715349,1704654632729,-241.50531712,0.00019331,2]
[310715350,1704654632738,-198.55600868,0.00019331,2]
[310715351,1704654632747,-1081.95,0.00019331,2]
[310715352,1704654632758,-1802.06665058,0.00019331,2]
[310715353,1704654632772,-260.93887902,0.00019331,2]
[310715354,1704654632781,-155.47266329,0.00019331,2]
[310715355,1704654632790,-194.15552673,0.00019331,2]
[310715356,1704654632799,-154.84515485,0.00019331,2]
[310715357,1704654632808,-174.76839857,0.00019331,2]
[310715358,1704654632817,-155.53002517,0.00019332,2]
[310715359,1704654632827,-2642.94309016,0.00019332,2]
[310715360,1704654632836,-8286.47486376,0.00019332,2]
[310715361,1704654632846,-49403.54771169,0.00019333,2]
[310715362,1704654632855,-2068.23044035,0.00019335,2]
[310715363,1704654632864,-2032.54499334,0.00019335,2]
[310715364,1704654632874,-216.2339648,0.00019335,2]
[310715365,1704654632882,-212.73351633,0.00019336,2]
[310715366,1704654632892,-260.04425413,0.00019337,2]
[310715367,1704654632902,-1574.23522059,0.00019337,2]
[310715368,1704654632911,-557.63265072,0.00019338,2]
[310715369,1704654632920,-154.84515485,0.00019339,2]
[310715370,1704654632929,-352.26183625,0.0001934,2]
[310715371,1704654632938,-1627.75041143,0.0002,2]
[310715426,1704654638984,-154.84515485,0.00019999,3]
[310715428,1704654638993,-155.05437551,0.00019999,2]
[310715430,1704654639012,-1364.78907166,0.0002,2]
[310715431,1704654639025,-366.055021,0.00020521,2]
[310715432,1704654639035,-7860.14278183,0.00020992,2]
[310715434,1704654639045,-154.86062544,0.00020993,2]
[310715437,1704654639055,-166.666666,0.00021918,2]
[310715440,1704654639064,-158.50265498,0.00025126,2]
[310715443,1704654639074,-422.96906177,0.00026733,2]
[310715446,1704654639084,-21174.7903967,0.00026734,2]
[310715449,1704654639094,-586.87813,0.00027198,2]
[310715452,1704654639104,-659.63,0.00028014,3]
[310715455,1704654639114,-9090.95951521,0.00028024,4]
[310715457,1704654639124,-166.2793413,0.0002814,2]
[310715459,1704654639134,-155.87853785,0.00028141,2]
[310715461,1704654639143,-213.597,0.0002853,2]
[310715463,1704654639152,-678.35470752,0.00029,2]
[310715465,1704654639162,-1500.0,0.00029,2]
[310715467,1704654639171,-301.61083922,0.00029204,2]
[310715469,1704654639181,-188.52284653,0.0002931,2]
[310715471,1704654639191,-182.71697459,0.0002931,2]
[310715473,1704654639201,-154.86062544,0.00029495,2]
[310715475,1704654639210,-5093.58386238,0.00029495,2]
[310715477,1704654639219,-314.36351353,0.00029496,2]
[310715479,1704654639229,-439.19222909,0.00029497,2]
[310715481,1704654639239,-226.93955916,0.00029497,2]
[310715483,1704654639248,-1294.65474549,0.00029497,2]
[310715486,1704654639259,-260.96826588,0.00029497,2]
[310715488,1704654639268,-3744.51899,0.00029497,2]
[310715490,1704654639278,-19127.94963107,0.00029498,2]
[310715492,1704654639287,-255.16835407,0.00029498,2]
[310715494,1704654639296,-4476.71468298,0.00029498,2]
[310715496,1704654639306,-201.93165246,0.00029498,2]
[310715497,1704654639315,-2094.80557069,0.00029498,2]
[310715500,1704654639329,-8389.21696511,0.00029498,2]
[310715502,1704654639339,-185.96317585,0.00029498,2]
[310715504,1704654639348,-151.0,0.00029499,2]
[310715506,1704654639357,-151.0,0.00029499,2]
[310715508,1704654639367,-1584.80241164,0.00029499,2]
[310715510,1704654639376,-2507.68187471,0.00029499,2]
[310715512,1704654639386,-155.31402655,0.00029499,2]
[310715514,1704654639395,-154.86062544,0.00029499,4]
[310715516,1704654639404,-2078.1549427,0.00029499,2]
[310715518,1704654639413,-3389.1231387,0.00029499,2]
[310715520,1704654639423,-3005.39361446,0.00029499,2]
[310715522,1704654639432,-762.96555308,0.00029499,2]
[310715524,1704654639442,-1820.7363443,0.00029499,2]
[310715526,1704654639451,-334.26243587,0.00029499,2]
[310715528,1704654639461,-304.80766426,0.00029499,2]
[310715530,1704654639470,-21949.75256416,0.000295,30]
[310715532,1704654639480,-150.83408251,0.00029575,30]
[310715534,1704654639489,-151.0,0.00029997,2]
[310715536,1704654639499,-151.0,0.00029997,2]
[310715538,1704654639508,-272.92943641,0.00029998,2]
[310715540,1704654639517,-1350.88827143,0.00029998,2]
[310715542,1704654639528,-169.65757293,0.00029998,2]
[310715544,1704654639537,-222.08276498,0.00029998,2]
[310715546,1704654639546,-516.71,0.00029999,2]
[310715548,1704654639556,-516.71,0.00029999,2]
[310715550,1704654639566,-516.71,0.00029999,2]
[310715552,1704654639575,-516.71,0.00029999,2]
[310715554,1704654639585,-516.71,0.00029999,2]
[310715555,1704654639594,-516.71,0.00029999,2]
[310715556,1704654639603,-516.71,0.00029999,2]
[310715557,1704654639612,-436.54027459,0.00029999,4]
[310715558,1704654639621,-500.0,0.00029999,4]
[310715559,1704654639631,-484.09,0.00029999,4]
[310715560,1704654639640,-250.52307275,0.00029999,4]
[310715561,1704654639650,-4308.02559584,0.0003,4]
[310715562,1704654639660,-639.13927279,0.0003,4]
[310715563,1704654639670,-155.50940124,0.0003,4]
[310715564,1704654639679,-2751.65318693,0.0003,2]
[310715565,1704654639690,-94452.4105688,0.0003,2]
[310715566,1704654639699,-151.0,0.0003,2]
[310715567,1704654639708,-1500.0,0.0003,2]
[310715568,1704654639718,-151.0,0.0003,2]
[310715569,1704654639727,-258.0,0.0003,2]
[310715570,1704654639736,-151.0,0.0003,2]
[310715571,1704654639746,-151.0,0.0003,2]
[310715572,1704654639755,-150.83408251,0.00030179,7]
[310715573,1704654639765,-26401.52212518,0.00030688,4]
[310715574,1704654639779,-150.83408251,0.00030795,4]
[310715575,1704654639788,-245.62976984,0.00030998,4]
[310715576,1704654639797,-218.21355464,0.00030998,4]
[310715577,1704654639806,-309.61300308,0.00030998,4]
[310715578,1704654639816,-151.0,0.00030999,2]
[310715579,1704654639825,-151.0,0.00030999,2]
[310715580,1704654639835,-8037.62579237,0.00030999,2]
[310715581,1704654639845,-516.71,0.00030999,2]
[310715582,1704654639854,-103890.08279263,0.00031,4]
[310715583,1704654639863,-151.0,0.00031,2]
[310715584,1704654639873,-151.0,0.00031,2]
[310715586,1704654639882,-151.0,0.00031,2]
[310715588,1704654639893,-151.0,0.00031,2]
[310715590,1704654639902,-160.21132361,0.00031217,2]
[310715591,1704654639911,-150.83408251,0.00031423,2]
[310715594,1704654639921,-150.0,0.0003153,2]
[310715596,1704654639931,-173.67174704,0.00032138,5]
[310715598,1704654639941,-1000.0,0.00032437,7]
[310715600,1704654639950,-1000.0,0.00033,33]
[310715602,1704654639959,-1000.0,0.00034,7]
[310715604,1704654639969,-671.40605352,0.00034,10]
[310715606,1704654639977,-1633.01603776,0.00034,10]
[310715608,1704654639986,-1512.48502834,0.00034,7]
[310715610,1704654639995,-436.87895533,0.00034,7]
[310715612,1704654640005,-151.0,0.00034338,2]
[310715613,1704654640014,-11922.73364972,0.000345,5]
[310715621,1704654640119,-4000.0,0.00034521,2]
[310715622,1704654640129,-200.0,0.000347,4]
[310715623,1704654640138,-440.6526146,0.00034793,4]
[310715624,1704654640147,-585.54982759,0.00034793,4]
[310715625,1704654640157,-383.0709397,0.00034794,4]
[310715626,1704654640166,-150.83408251,0.00034915,2]
[310715627,1704654640177,-250.21564279,0.00034915,2]
[310715628,1704654640190,-1394.33749588,0.00035,3]
[310715629,1704654640203,-844.19356294,0.00035,2]
[310715630,1704654640213,-7799.92069256,0.00035,4]
[310715631,1704654640222,-5061.18921309,0.00035,2]
[310715632,1704654640231,-1456.24400405,0.00035,14]
[310715633,1704654640241,-4351.04636824,0.00035,4]
[310715634,1704654640250,-388.53399242,0.00035,4]
[310715635,1704654640260,-2651.84083885,0.00035,4]
[310715636,1704654640270,-154.86062544,0.00035,4]
[310715637,1704654640282,-332.3775806,0.00035,4]
[310715638,1704654640297,-1000.0,0.00035,35]
[310715639,1704654640306,-151.0,0.00035,2]
[310715640,1704654640316,-151.0,0.00035,2]
[310715641,1704654640325,-200.270631,0.00035,7]
[310715642,1704654640336,-151.0,0.00035,2]
[310715643,1704654640346,-151.0,0.00035,2]
[310715644,1704654640355,-900.07228104,0.00035295,14]
[310715645,1704654640365,-1025.0,0.00035452,2]
[310715646,1704654640375,-47035.30515079,0.000355,14]
[310715647,1704654640384,-151.0,0.000355,2]
[310715648,1704654640394,-164.42887097,0.000355,2]
[310715649,1704654640404,-151.0,0.000355,2]
[310715650,1704654640414,-173.379998,0.000355,2]
[310715651,1704654640423,-301.66816502,0.00035502,4]
[310715652,1704654640432,-151.0,0.00035616,2]
[310715653,1704654640441,-151.0,0.00035616,2]
[310715654,1704654640451,-151.0,0.00035616,2]
[310715655,1704654640460,-151.0,0.00035616,2]
[310715656,1704654640470,-151.0,0.00035616,2]
[310715657,1704654640479,-151.0,0.00035616,2]
[310715658,1704654640488,-151.0,0.00035616,2]
[310715659,1704654640497,-151.0,0.00035616,2]
[310715660,1704654640506,-500.0,0.00035616,2]
[310715661,1704654640516,-500.0,0.00035616,2]
[310715662,1704654640525,-504.45383639,0.00035616,2]
[310715663,1704654640535,-500.0,0.00035616,2]
[310715664,1704654640544,-504.23380216,0.00035616,2]
[310715665,1704654640553,-500.0,0.00035616,2]
[310715666,1704654640562,-500.0,0.00035616,2]
[310715667,1704654640572,-500.0,0.00035616,2]
[310715668,1704654640581,-501.97670236,0.00035616,2]
[310715669,1704654640593,-526.72037715,0.00035616,2]
[310715670,1704654640602,-500.0,0.00035616,2]
[310715671,1704654640611,-500.0,0.00035616,2]
[310715672,1704654640620,-500.0,0.00035616,2]
[310715673,1704654640630,-500.0,0.00035616,2]
[310715674,1704654640639,-601.72469275,0.00035616,2]
[310715675,1704654640648,-500.0,0.00035616,2]
[310715676,1704654640657,-626.02,0.00035616,2]
[310715677,1704654640666,-500.0,0.00035616,2]
[310715678,1704654640675,-500.0,0.00035616,2]
[310715679,1704654640684,-649.07,0.00035616,2]
[310715680,1704654640694,-500.0,0.00035616,2]
[310715681,1704654640703,-500.0,0.00035616,2]
[310715682,1704654640712,-500.0,0.00035616,2]
[310715683,1704654640721,-500.0,0.00035616,2]
[310715684,1704654640731,-355.65774064,0.00035616,2]
[310715685,1704654640740,-500.0,0.00035616,2]
[310715686,1704654640750,-500.0,0.00035616,2]
[310715687,1704654640759,-633.99008787,0.00035616,2]
[310715688,1704654640772,-558.20259641,0.00035616,2]
[310715689,1704654640781,-500.0,0.00035616,2]
[310715690,1704654640790,-196.89239958,0.00035616,2]
[310715691,1704654640799,-500.0,0.00035616,2]
[310715692,1704654640809,-500.0,0.00035616,2]
[310715693,1704654640818,-500.0,0.00035616,2]
[310715694,1704654640827,-500.0,0.00035616,2]
[310715695,1704654640837,-500.0,0.00035616,2]
[310715696,1704654640846,-500.0,0.00035616,2]
[310715697,1704654640855,-500.0,0.00035616,2]
[310715698,1704654640865,-1000.0,0.00035616,7]
[310715699,1704654640874,-500.0,0.00035616,2]
[310715700,1704654640883,-500.0,0.00035616,2]
[310715701,1704654640892,-500.0,0.00035616,2]
[310715702,1704654640901,-500.0,0.00035616,2]
[310715703,1704654640910,-500.0,0.00035616,2]
[310715704,1704654640919,-500.0,0.00035616,2]
[310715705,1704654640928,-500.0,0.00035616,2]
[310715706,1704654640937,-500.0,0.00035616,2]
[310715707,1704654640946,-502.54845498,0.00035616,2]
[310715708,1704654640955,-285.97608637,0.00035616,2]
[310715709,1704654640964,-421.81323098,0.00035616,2]
[310715710,1704654640973,-500.0,0.00035616,2]
[310715711,1704654640982,-500.0,0.00035616,2]
[310715712,1704654640991,-500.0,0.00035616,2]
[310715713,1704654640998,-500.0,0.00035616,2]
[310715714,1704654641006,-508.00782067,0.00035616,2]
[310715715,1704654641015,-546.52,0.00035616,2]
[310715716,1704654641024,-500.0,0.00035616,2]
[310715717,1704654641034,-500.0,0.00035616,2]
[310715718,1704654641044,-521.17782528,0.00035616,2]
[310715719,1704654641053,-500.0,0.00035616,2]
[310715720,1704654641062,-500.0,0.00035616,2]
[310715721,1704654641072,-500.0,0.00035616,2]
[310715722,1704654641081,-634.68,0.00035616,2]
[310715723,1704654641091,-500.0,0.00035616,2]
[310715724,1704654641100,-239.61387438,0.00035616,2]
[310715725,1704654641109,-517.04,0.00035616,2]
[310715726,1704654641118,-220.0,0.00035616,2]
[310715727,1704654641127,-607.13042149,0.00035616,2]
[310715728,1704654641136,-1240.96,0.00035616,2]
[310715729,1704654641145,-613.23157013,0.00035616,2]
[310715730,1704654641154,-500.0,0.00035616,2]
[310715731,1704654641162,-500.0,0.00035616,2]
[310715732,1704654641172,-500.0,0.00035616,2]
[310715733,1704654641181,-500.0,0.00035616,2]
[310715734,1704654641190,-500.0,0.00035616,2]
[310715735,1704654641199,-500.0,0.00035616,2]
[310715736,1704654641208,-500.0,0.00035616,2]
[310715737,1704654641217,-500.0,0.00035616,2]
[310715738,1704654641226,-500.0,0.00035616,2]
[310715739,1704654641235,-530.45006486,0.00035616,2]
[310715740,1704654641244,-500.0,0.00035616,2]
[310715741,1704654641253,-354.79444587,0.00035616,2]
[310715742,1704654641262,-500.0,0.00035616,2]
[310715743,1704654641272,-500.0,0.00035616,2]
[310715744,1704654641281,-227.4561411,0.00035616,2]
[310715745,1704654641290,-502.96550116,0.00035616,2]
[310715746,1704654641299,-1836.88,0.00035616,2]
[310715747,1704654641309,-500.0,0.00035616,2]
[310715748,1704654641318,-500.0,0.00035616,2]
[310715749,1704654641328,-567.60650811,0.00035616,2]
[310715750,1704654641337,-500.0,0.00035616,2]
[310715751,1704654641347,-500.0,0.00035616,2]
[310715752,1704654641357,-500.0,0.00035616,2]
[310715753,1704654641367,-500.0,0.00035616,2]
[310715754,1704654641376,-500.0,0.00035616,2]
[310715755,1704654641385,-500.0,0.00035616,2]
[310715756,1704654641395,-500.0,0.00035616,2]
[310715757,1704654641404,-500.0,0.00035616,2]
[310715758,1704654641413,-563.60042334,0.00035616,2]
[310715759,1704654641423,-508.08342372,0.00035616,2]
[310715760,1704654641432,-2519.01,0.00035616,2]
[310715761,1704654641442,-503.86971773,0.00035616,2]
[310715762,1704654641451,-500.0,0.00035616,2]
[310715763,1704654641461,-500.0,0.00035616,2]
[310715764,1704654641470,-500.0,0.00035616,2]
[310715765,1704654641479,-500.0,0.00035616,2]
[310715766,1704654641488,-445.05696137,0.00035616,2]
[310715767,1704654641498,-500.0,0.00035616,2]
[310715768,1704654641507,-495.66117018,0.00035616,2]
[310715769,1704654641516,-503.76888429,0.00035616,2]
[310715770,1704654641526,-500.0,0.00035616,2]
[310715771,1704654641535,-500.0,0.00035616,2]
[310715772,1704654641545,-235.91877574,0.00035616,2]
[310715773,1704654641618,-574.83717315,0.00035616,2]
[310715774,1704654641628,-500.0,0.00035616,2]
[310715775,1704654641637,-533.78,0.00035616,2]
[310715776,1704654641646,-509.93987221,0.00035616,2]
[310715777,1704654641655,-500.0,0.00035616,2]
[310715778,1704654641664,-500.0,0.00035616,2]
[310715779,1704654641673,-500.0,0.00035616,2]
[310715780,1704654641682,-500.0,0.00035616,2]
[310715781,1704654641691,-500.0,0.00035616,2]
[310715782,1704654641700,-500.0,0.00035616,2]
[310715783,1704654641710,-500.0,0.00035616,2]
[310715784,1704654641719,-500.0,0.00035616,2]
[310715785,1704654641728,-500.0,0.00035616,2]
[310715786,1704654641737,-500.0,0.00035616,2]
[310715787,1704654641746,-500.0,0.00035616,2]
[310715788,1704654641755,-518.45,0.00035616,2]
[310715789,1704654641764,-518.45,0.00035616,2]
[310715790,1704654641778,-500.0,0.00035616,2]
[310715791,1704654641787,-518.45,0.00035616,2]
[310715792,1704654641796,-518.45,0.00035616,2]
[310715793,1704654641805,-518.45,0.00035616,2]
[310715794,1704654641814,-518.45,0.00035616,2]
[310715795,1704654641824,-518.45,0.00035616,2]
[310715796,1704654641832,-518.45,0.00035616,2]
[310715797,1704654641842,-518.45,0.00035616,2]
[310715798,1704654641851,-500.0,0.00035616,2]
[310715799,1704654641860,-518.45,0.00035616,2]
[310715800,1704654641869,-518.45,0.00035616,2]
[310715801,1704654641878,-518.45,0.00035616,2]
[310715802,1704654641887,-500.0,0.00035616,2]
[310715803,1704654641896,-518.45,0.00035616,2]
[310715804,1704654641906,-518.45,0.00035616,2]
[310715805,1704654641915,-518.45,0.00035616,2]
[310715806,1704654641924,-518.45,0.00035616,2]
[310715807,1704654641933,-518.45,0.00035616,2]
[310715808,1704654641942,-518.45,0.00035616,2]
[310715809,1704654641951,-518.45,0.00035616,2]
[310715810,1704654641960,-500.0,0.00035616,2]
[310715811,1704654641970,-500.0,0.00035616,2]
[310715812,1704654641979,-500.0,0.00035616,2]
[310715813,1704654641989,-500.0,0.00035616,2]
[310715814,1704654641998,-503.32483686,0.00035616,2]
[310715815,1704654642008,-500.0,0.00035616,2]
[310715816,1704654642017,-500.0,0.00035616,2]
[310715817,1704654642026,-500.0,0.00035616,2]
[310715818,1704654642034,-500.0,0.00035616,2]
[310715819,1704654642043,-500.0,0.00035616,2]
[310715820,1704654642053,-500.0,0.00035616,2]
[310715821,1704654642062,-202.2821849,0.00035616,2]
[310715822,1704654642071,-530.81502069,0.00035616,2]
[310715823,1704654642080,-500.0,0.00035616,2]
[310715824,1704654642089,-500.0,0.00035616,2]
[310715825,1704654642098,-500.0,0.00035616,2]
[310715826,1704654642107,-500.0,0.00035616,2]
[310715827,1704654642117,-500.0,0.00035616,2]
[310715828,1704654642126,-596.25335775,0.00035616,2]
[310715829,1704654642135,-500.0,0.00035616,2]
[310715830,1704654642144,-500.0,0.00035616,2]
[310715831,1704654642153,-500.0,0.00035616,2]
[310715832,1704654642162,-500.0,0.00035616,2]
[310715833,1704654642171,-500.0,0.00035616,2]
[310715834,1704654642179,-500.0,0.00035616,2]
[310715835,1704654642189,-504.08968955,0.00035616,2]
[310715836,1704654642198,-500.0,0.00035616,2]
[310715837,1704654642207,-500.0,0.00035616,2]
[310715838,1704654642216,-515.17235565,0.00035616,2]
[310715839,1704654642224,-500.0,0.00035616,2]
[310715840,1704654642233,-530.05937061,0.00035616,2]
[310715841,1704654642243,-500.0,0.00035616,2]
[310715842,1704654642252,-500.0,0.00035616,2]
[310715843,1704654642260,-500.0,0.00035616,2]
[310715844,1704654642269,-500.0,0.00035616,2]
[310715845,1704654642278,-503.96775511,0.00035616,30]
[310715846,1704654642287,-1359.32,0.00035616,2]
[310715847,1704654642297,-500.0,0.00035616,2]
[310715848,1704654642306,-500.0,0.00035616,2]
[310715849,1704654642315,-500.0,0.00035616,2]
[310715850,1704654642324,-500.0,0.00035616,2]
[310715851,1704654642333,-500.0,0.00035616,2]
[310715852,1704654642343,-500.0,0.00035616,2]
[310715853,1704654642352,-559.46978784,0.00035616,2]
[310715854,1704654642361,-500.0,0.00035616,2]
[310715855,1704654642370,-500.0,0.00035616,2]
[310715856,1704654642379,-500.0,0.00035616,2]
[310715857,1704654642389,-1000.0,0.00035616,5]